Workbook

Sheet Ввод параметров для расчетов
C1: ИЗМЕНЯЕМЫЕ ЯЧЕЙКИ
C4: КЛЮЧЕВЫЕ ПАРАМЕТРЫ КРЕДИТОВАНИЯ | F4: РАСЧЕТ СТАВКИ И ЕЖЕМЕСЯЧНОГО ПЛАТЕЖА
R5: Да
C6: Личное страхование | D6: Да | G6: Первая часть кредита | H6: Вторая часть кредита (для учета по Комбо-ипотеке) | R6: Нет
C7: Регион приобретения недвижимости | D7: МиМО/СПбиЛО
C8: Программа кредитования | D8: Семейная ипотека | F8: Сумма кредита | G8: =IF(AND(D7="МиМО/СПбиЛО",D8="Семейная ипотека",D24>12000000),12000000,IF(AND(D7="иные регионы",D8="Семейная ипотека",D24>6000000),6000000,IF(AND(OR(D7="МиМО/СПбиЛО",D7="Краснодарский край"),D8="Собственная программа",D24>50000000),50000000,IF(AND(D7="иные регионы",D8="Собственная программа",D24>30000000),30000000,IF(AND(OR(D7="МиМО/СПбиЛО",D7="иные регионы"),D8="IT-Ипотека",D24>9000000),9000000,D24))))) -> 12,000,000.00 | H8: =IF(D8="Собственная программа","",IF(AND(D8="Семейная ипотека",D7="иные регионы",OR(D24<6000000,D24=6000000)),"",IF(AND(D8="Семейная ипотека",D7="МиМО/СПбиЛО",OR(D24<12000000,D24=12000000)),"",IF(AND(D8="IT-Ипотека",OR(D24<9000000,D24=9000000)),"",IF(AND(D8="IT-Ипотека",D24>18000000),18000000-G8,IF(AND(D8="Семейная ипотека",D7="иные регионы",D24>15000000),15000000-G8,IF(AND(D8="Семейная ипотека",D7="МиМО/СПбиЛО",D24>30000000),30000000-G8,D24-G8))))))) -> 6,800,000.00
C9: Цель кредита | D9: Покупка земли и строительство дома | F9: Ставка по кредиту | G9: =IF(AND(D6="Да",D8="Семейная ипотека"),K15,IF(AND(D6="Да",D8="Семейная ипотека"),K17,IF(AND(D6="Да",D8="Госпрограмма 2020"),M15,IF(AND(D6="Да",D8="Госпрограмма 2020"),M17,IF(AND(D6="Нет",D8="Семейная ипотека"),K14,IF(AND(D6="Нет",D8="Семейная ипотека"),K16,IF(AND(D6="Нет",D8="Госпрограмма 2020"),M14,IF(AND(D6="Нет",D8="Госпрограмма 2020"),M16,IF(AND(D6="Да",D8="IT-Ипотека"),N15,IF(AND(D6="Да",D8="IT-Ипотека"),N17,IF(AND(D6="Нет",D8="IT-Ипотека"),N14,IF(AND(D6="Нет",D8="IT-Ипотека"),N16,IF(AND(D6="Да",D12="Нет",D8="Собственная программа"),P15,IF(AND(D6="Нет",D12="Нет",D8="Собственная программа"),P16,IF(AND(D6="Да",D8="Семейная ипотека (для ДФО)"),L15,IF(AND(D6="Да",D8="Семейная ипотека (для ДФО)"),L17,IF(AND(D6="Нет",D8="Семейная ипотека (для ДФО)"),L14,IF(AND(D6="Нет",D8="Семейная ипотека (для ДФО)"),L16,IF(AND(D6="Да",D12="Да",D8="Собственная программа"),#REF!,IF(AND(D6="Нет",D12="Да",D8="Собственная программа"),#REF!,"")))))))))))))))))))) -> 6.00% | H9: =IF(H8<>"",IF(AND(D6="Да",OR(D8="Семейная ипотека",D8="Семейная ипотека (для ДФО)")),O15,IF(AND(D6="Да",OR(D8="Семейная ипотека",D8="Семейная ипотека (для ДФО)")),O17,IF(AND(D6="Да",D8="Госпрограмма 2020"),O15,IF(AND(D6="Да",D8="Госпрограмма 2020"),O17,IF(AND(D6="Нет",OR(D8="Семейная ипотека",D8="Семейная ипотека (для ДФО)")),O14,IF(AND(D6="Нет",OR(D8="Семейная ипотека",D8="Семейная ипотека (для ДФО)")),O16,IF(AND(D6="Нет",D8="Госпрограмма 2020"),O14,IF(AND(D6="Нет",D8="Госпрограмма 2020"),O16,IF(H8<>"",IF(AND(D6="Да",D8="IT-Ипотека"),O15,IF(AND(D6="Да",D8="IT-Ипотека"),O17,IF(AND(D6="Нет",D8="IT-Ипотека"),O14,IF(AND(D6="Нет",D8="IT-Ипотека"),O16,""))))))))))))),"") -> 21.50%
C10: Категория подрядчика | D10: Стандарт | F10: Срвзв. ставка (с учетом КОМБО-Ипотеки) | G10: =IF(H8="",G9,((G8*G9+(H8*H9))/(G8+H8))) -> 11.61% | R10: Цели кредита | S10: Подрядчики
C11: Особенности расчетов по сделке | D11: Обычная сделка | F11: Платеж по кредиту | G11: =IF(H8="",-PMT(G10/12,D16,G8),-PMT(G10/12,D16,(G8+H8))) -> 187,586.82 ₽ | R11: Строительство дома на своем участке | S11: Стандарт
C12: =IF(AND(D7="МиМО/СПбиЛО",D8="IT-Ипотека"),"Напоминание! По IT-Ипотеке участок не может быть расположен в Москве и Санкт-Петербурге, допускается расположение участка в Московской или Ленинградской областях","") ->  | F12: =IF(OR(AND(D8="Семейная ипотека",D7="МиМО/СПбиЛО",D24>12000000),AND(D8="Семейная ипотека",D7="иные регионы",D24>6000000),AND(D8="IT-Ипотека",D24>9000000)),"ВНИМАНИЕ, превышена максимальная суммы стандартной госпрограммы. Требуется Комбо-ипотека","") -> ВНИМАНИЕ, превышена максимальная суммы стандартной госпрограммы. Требуется Комбо-ипотека | R12: Покупка земли и строительство дома | S12: Ключевой
K13: СИ | L13: СИ для ДФО | M13: ГП | N13: IT | O13: Комбо-транш | P13: Базовая
J14: Клиент "улица" или зп-клиент (НЕ А-Клуб/Сотрудники) БЕЗ личного страхования | K14: ='Матрица ставок_Инфо'!C17 -> 7.0% | L14: ='Матрица ставок_Инфо'!D17 -> 6.0% | M14: ='Матрица ставок_Инфо'!E17 -> 9.0% | N14: ='Матрица ставок_Инфо'!F17 -> 6.0% | O14: ='Матрица ставок_Инфо'!G17 -> 22.5% | P14: ='Матрица ставок_Инфо'!H17 -> 22.5%
J15: Клиент "улица" или зп-клиент (НЕ А-Клуб/Сотрудники) С договором личного страхования | K15: ='Матрица ставок_Инфо'!C18 -> 6.0% | L15: ='Матрица ставок_Инфо'!D18 -> 5.0% | M15: ='Матрица ставок_Инфо'!E18 -> 7.9% | N15: ='Матрица ставок_Инфо'!F18 -> 6.0% | O15: ='Матрица ставок_Инфо'!G18 -> 21.5% | P15: ='Матрица ставок_Инфо'!H18 -> 21.5%
C16: Срок кредитования, мес. | D16: 362.00 | E16: =IF(MOD(D16-2,12)>0,"Срок кредитования должен быть кратен 12 мес + 2 мес.","") ->  | J16: Клиент А-Клуб/Сотрудники БЕЗ личного страхования | K16: ='Матрица ставок_Инфо'!C19 -> 7.0% | L16: ='Матрица ставок_Инфо'!D19 -> 6.0% | M16: ='Матрица ставок_Инфо'!E19 -> 9.0% | N16: ='Матрица ставок_Инфо'!F19 -> 6.0% | O16: ='Матрица ставок_Инфо'!G19 -> 22.5% | P16: ='Матрица ставок_Инфо'!H19 -> 22.5%
C17: Стоимость приобретаемого зем. участка | D17: 1,000,000.00 | J17: Клиент А-Клуб/Сотрудники С договором личного страхования | K17: ='Матрица ставок_Инфо'!C20 -> 6.0% | L17: ='Матрица ставок_Инфо'!D20 -> 5.0% | M17: ='Матрица ставок_Инфо'!E20 -> 7.9% | N17: ='Матрица ставок_Инфо'!F20 -> 6.0% | O17: ='Матрица ставок_Инфо'!G20 -> 21.5% | P17: ='Матрица ставок_Инфо'!H20 -> 21.5% | R17: 1
C18: Стоимость строительства | D18: 23,000,000.00
C19: Общая стоимость для расчета кредита | D19: =D17+D18 -> 24,000,000.00 | F19: =IF(AND(OR(D8="Семейная ипотека",D8="Семейная ипотека для ДФО"),D25>79.9%),"Внимание! Необходимо увеличить размер ПВ; предельный К/З = 79,9%",IF(AND(D8="Госпрограмма 2020",D25>69.9%),"Внимание! Необходимо увеличить размер ПВ; предельный К/З = 69,9%",IF(AND(D8="IT-Ипотека",D25>79.9%),"Внимание! Необходимо увеличить размер ПВ; предельный К/З = 79,9%",IF(AND(D8="Собственная программа",D25>79.9%),"Внимание! Необходимо увеличить размер ПВ; предельный К/З = 79,9%","")))) -> 
C20: Размер собственных средств (ПВ)_без учета МСК | D20: 4,700,000.00 | F20: =IF(AND(OR(D8="Семейная ипотека",D8="Семейная ипотека (для ДФО)"),D25>79.9%),(D19*20.1%-D23),IF(AND(D8="Госпрограмма 2020",D25>69.9%),(D19*30.1%-D23),IF(AND(D8="IT-Ипотека",D25>79.9%),(D19*20.1%-D23),IF(AND(D8="Собственная программа",D25>79.9%),(D19*20.1%-D23),"")))) ->  | R20: Категория клиента | S20: Улица или зарплатник
C21: Часть ПВ, которая уже внесена за зем. участок | D21: 200,000.00 | S21: Сотрудник/А-Клуб
C22: Часть ПВ, которая уже внесена на строительство | D22: 0 | F22: =IF(D22>D20,"ОШИБКА!Размер внесенного ПВ меньше заявленного","") -> 
C23: Размер МСК в счет ПВ | D23: 500,000.00 | S23: Да
C24: Размер кредитных средств | D24: =D19-D20-D23 -> 18,800,000.00 | F24: =IF(AND(D8="Госпрограмма 2020",D24>6000000),"ВНИМАНИЕ, сумма кредита не может быть больше 6 млн руб.",IF(AND(D8="Семейная ипотека",D7="МиМО/СПбиЛО",D24>30000000),"ВНИМАНИЕ, сумма кредита (с учетом КОМБО-Ипотеки) не может быть больше 30 млн руб.",IF(AND(D8="Семейная ипотека",D7="иные регионы",D24>15000000),"ВНИМАНИЕ, сумма кредита (с учетом КОМБО-Ипотеки) не может быть больше 15 млн руб.",IF(AND(D8="IT-Ипотека",D24>18000000),"ВНИМАНИЕ, сумма кредита (с учетом КОМБО-Ипотеки) не может быть больше 18 млн руб.",IF(AND(D8="Собственная программа",OR(D7="МиМО/СПбиЛО",D7="Краснодарский край"),D24>50000000),"ВНИМАНИЕ, сумма кредита (с учетом КОМБО-Ипотеки) не может быть больше 50 млн руб.",IF(AND(D8="Собственная программа",OR(D7="иные регионы с численностью СВЫШЕ 1 млн чел.",D7="иные регионы с численностью ДО 1 млн чел."),D24>30000000),"ВНИМАНИЕ, сумма кредита (с учетом КОМБО-Ипотеки) не может быть больше 30 млн руб.",IF(AND(D8="IT-Ипотека",D7="иные регионы с численностью ДО 1 млн чел.",D24>15000000),"ВНИМАНИЕ, сумма кредита (с учетом КОМБО-Ипотеки) не может быть больше 15 млн руб.",""))))))) ->  | S24: Нет
C25: К/З | D25: =D24/D19 -> 78.33%
R27: Специфика расчетов | S27: Обычная сделка
S28: GoodWood
C29: РАСПРЕДЕЛЕНИЕ СРЕДСТВ ПО АККРЕДИТИВАМ
C30: Аккредитивы | D30: Размер аккредитива | E30: Условия доступа к аккредитиву (Подсказка)
C31: 1 аккредитив (деньги пойдут на оплату зем. участка) | D31: =IF(Цель_кредита="покупка земли и строительство дома",D17-D21,0) -> 800,000.00 | E31: =IF(D31="","",'Матрица по аккред._Инфо'!F3) -> Чтобы продавец зем.участка получил деньги за земельный участок, нужно предоставить документы о переходе права на зем. участок и ипотеки в пользу Банка | R31: Программа | S31: Семейная ипотека
C32: 2 аккредитив (деньги за строительство дома) Для инфо: деньги на аккредитиве будут лежать до момента гос регистрации ипотеки на землю, затем будут переведены на эскроу счет | D32: =IF(D11="GoodWood",(IF(D18*'Матрица по аккред._Инфо'!C11-D22-D23<0,0,D18*'Матрица по аккред._Инфо'!C11-D22-D23)),IF((IF($D$10="Стандарт",($D$18*'Матрица по аккред._Инфо'!C4),IF($D$10="Ключевой",($D$18*'Матрица по аккред._Инфо'!D4),IF($D$10="Эксклюзив",($D$18*'Матрица по аккред._Инфо'!E4),0)))-D22-D23)<0,0,(IF($D$10="Стандарт",($D$18*'Матрица по аккред._Инфо'!C4),IF($D$10="Ключевой",($D$18*'Матрица по аккред._Инфо'!D4),IF($D$10="Эксклюзив",($D$18*'Матрица по аккред._Инфо'!E4),0)))-D22-D23))) -> 22,500,000.00 | E32: =IF(D32="","",'Матрица по аккред._Инфо'!F4) -> Чтобы подрядчик получил деньги для пополнения эскроу счета подрядчик/клиент должен предоставить документы, подтверждающие регистрацию ипотеки на зем.участок в пользу Банка | S32: IT-Ипотека
C33: 3 аккредитив (деньги пойдут на строительство стенового комплекта) | D33: =IF(D11="GoodWood",(IF(D18*'Матрица по аккред._Инфо'!C11-D22-D23<0,(D18*'Матрица по аккред._Инфо'!C12+D18*'Матрица по аккред._Инфо'!C11-D22-D23),D18*'Матрица по аккред._Инфо'!C12)),IF(((IF($D$10="Стандарт",($D$18*'Матрица по аккред._Инфо'!C4),IF($D$10="Ключевой",($D$18*'Матрица по аккред._Инфо'!D4),IF($D$10="Эксклюзив",($D$18*'Матрица по аккред._Инфо'!E4),0)))-D22-D23)<0),IF($D$10="Стандарт",($D$18*'Матрица по аккред._Инфо'!C5),IF($D$10="Ключевой",($D$18*'Матрица по аккред._Инфо'!D5),IF($D$10="Эксклюзив",($D$18*'Матрица по аккред._Инфо'!E5),0)))+(IF($D$10="Стандарт",($D$18*'Матрица по аккред._Инфо'!C4),IF($D$10="Ключевой",($D$18*'Матрица по аккред._Инфо'!D4),IF($D$10="Эксклюзив",($D$18*'Матрица по аккред._Инфо'!E4),0)))-D22-D23),IF($D$10="Стандарт",($D$18*'Матрица по аккред._Инфо'!C5),IF($D$10="Ключевой",($D$18*'Матрица по аккред._Инфо'!D5),IF($D$10="Эксклюзив",($D$18*'Матрица по аккред._Инфо'!E5),0))))) -> 0 | E33: =IF(D33="","",'Матрица по аккред._Инфо'!F5) -> После того, как фундамент будет построен, подрядчик может получить деньги для продолжения строительства жилого дома. Для этого потребуется предоставить в Банк акт выполненных работ по строительству фундамента
C34: 4 аккредитив (деньги пойдут на завершение строительства) | D34: =IF(D11="GoodWood",(D18*'Матрица по аккред._Инфо'!C13),IF($D$10="Стандарт",($D$18*'Матрица по аккред._Инфо'!C6),IF($D$10="Ключевой",($D$18*'Матрица по аккред._Инфо'!D6),IF($D$10="Эксклюзив",($D$18*'Матрица по аккред._Инфо'!E6),0)))) -> 0 | E34: =IF(D34="","",IF(D11="GoodWood",'Матрица по аккред._Инфо'!F13,'Матрица по аккред._Инфо'!F6)) -> После того, как дом будет построен, Подрядчик получает оставшуюся сумму средств. Для этого необходимо предоставить в Банк акт выполненных работ по строительству жилого дома
C35: Проверка_общая стоимость строительства (с учетом МСК) | D35: =SUM(D32:D34)+D22+D23 -> 23,000,000.00 | R35: Регион
S36: МиМО/СПбиЛО
S37: иные регионы

Sheet Ввод параметров (hidden)
B2: Категория клиента | C2: Зарплатник/Сотрудник/А-Клуб
B3: Личное страхование | C3: Да
B5: Регион приобретения недвижимости | C5: МиМО/СПбиЛО
B6: Программа кредитования | C6: Госпрограмма 2020 | L6: Цели кредита | M6: Подрядчики
B7: Цель кредита | C7: покупка земли и строительство дома | D7: Заполняет сотрудник ОП!!! | L7: строительство дома на своем участке | M7: Стандарт
B8: Категория подрядчика | C8: Ключевой | D8: Заполняет сотрудник ОП!!! Категория партнера устанавливается при аккредитации. В ПЕГУ залит справочник, при выборе партнера видно, к какой категории он относится. Если это новый партнер, который еще не аккредитован, то по умолчанию при аккредитации ему будет присвоена категории Стандарт | L8: покупка земли и строительство дома | M8: Ключевой
G9: Клиент "улица" (НЕ Зарплатный клиент/А-Клуб/Сотрудники) БЕЗ личного страхования | H9: ='Матрица ставок_Инфо'!C17 -> 7.00% | I9: ='Матрица ставок_Инфо'!E17 -> 9.00% | J9: ='Матрица ставок_Инфо'!G17 -> 22.50% | M9: Эксклюзив
B10: Исходные данные для расчетов | G10: Клиент "улица" (НЕ Зарплатный клиент/А-Клуб/Сотрудники) С договором личного страхования | H10: ='Матрица ставок_Инфо'!C18 -> 6.00% | I10: ='Матрица ставок_Инфо'!E18 -> 7.90% | J10: ='Матрица ставок_Инфо'!G18 -> 21.50%
B11: Стоимость приобретаемого земельного участка | C11: 1,000,000.00 | D11: Заполняет сотрудник ОП ТОЛЬКО при цели кредита "Покупка земли и строительство дома"!!! | G11: Клиент Зарплатный клиент/А-Клуб/Сотрудники БЕЗ личного страхования | H11: ='Матрица ставок_Инфо'!C19 -> 7.00% | I11: ='Матрица ставок_Инфо'!E19 -> 9.00% | J11: ='Матрица ставок_Инфо'!G19 -> 22.50% | L11: 1
B12: Стоимость строительства | C12: 12,000,000.00 | D12: Заполняет сотрудник ОП!!! | G12: Клиент Зарплатный клиент/А-Клуб/Сотрудники С договором личного страхования | H12: ='Матрица ставок_Инфо'!C20 -> 6.00% | I12: ='Матрица ставок_Инфо'!E20 -> 7.90% | J12: ='Матрица ставок_Инфо'!G20 -> 21.50%
B13: Общая стоимость для расчета кредита | C13: =C11+C12 -> 13,000,000.00 | D13: Рассчитывается автоматически
B14: Размер собственных средств (ПВ)_без учета МСК | C14: 3,200,000.00 | D14: Заполняет сотрудник ОП!!! | L14: Категория клиента | M14: Улица
B15: Часть ПВ, которая уже внесена на земельный участок | C15: 0 | D15: Заполняет сотрудник ОП, если по земле был внесен аванс!!! | M15: Зарплатник/Сотрудник/А-Клуб
B16: Часть ПВ, которая уже внесена на строительство | C16: 0 | D16: Заполняет сотрудник ОП, если по договору подряда был внесен аванс!!!
B17: Размер МСК в счет ПВ | C17: 800,000.00 | D17: Заполняет сотрудник ОП при использовании МСК!!!
B18: Размер кредитных средств | C18: =C13-C14-C17 -> 9,000,000.00 | D18: =IF(C18>12000000,"Внимание, превышена максимальная суммы кредита. Требуется Комбо-ипотека","") ->  | M18: Нет
B19: К/З | C19: =C18/C13 -> 69% | D19: =IF(C19>79.9%,"Внимание! Необходимо увеличить размер ПВ; предельный К/З = 79,9%","") -> 
B22: Расчетные данные | C22: Часть кредита по госпрограмме | D22: Часть кредита по Комбо-ипотеке
B23: Сумма кредита | C23: =IF(AND(C5="МиМО/СПбиЛО",C18>12000000),12000000,IF(AND(C5="иные регионы",C18>6000000),6000000,C18)) -> 9,000,000.00 | D23: =IF(OR(C23=12000000,C23=6000000),(C18-C23),"") -> 
B24: Ставка по кредиту | C24: =IF(AND(C2="Улица",C3="Да",C6="Семейная ипотека"),H10,IF(AND(C2="Зарплатник/Сотрудник/А-Клуб",C3="Да",C6="Семейная ипотека"),H12,IF(AND(C2="Улица",C3="Да",C6="Госпрограмма 2020"),I10,IF(AND(C2="Зарплатник/Сотрудник/А-Клуб",C3="Да",C6="Госпрограмма 2020"),I12,IF(AND(C2="Улица",C3="Нет",C6="Семейная ипотека"),H9,IF(AND(C2="Зарплатник/Сотрудник/А-Клуб",C3="Нет",C6="Семейная ипотека"),H11,IF(AND(C2="Улица",C3="Нет",C6="Госпрограмма 2020"),I9,IF(AND(C2="Зарплатник/Сотрудник/А-Клуб",C3="Нет",C6="Госпрограмма 2020"),I11,"")))))))) -> 7.90% | D24: =IF(AND(C5="МиМО/СПбиЛО",C18<12000000),"",IF(AND(C2="Улица",C3="Да"),J10,IF(AND(C2="Зарплатник/Сотрудник/А-Клуб",C3="Да"),J12,IF(AND(C2="Улица",C3="Нет"),J9,IF(AND(C2="Зарплатник/Сотрудник/А-Клуб",C3="Нет"),J11,IF(AND(C5="иные регионы",C18<6000000),"",IF(AND(C2="Улица",C3="Да"),J10,IF(AND(C2="Зарплатник/Сотрудник/А-Клуб",C3="Да"),J12,IF(AND(C2="Улица",C3="Нет"),J9,IF(AND(C2="Зарплатник/Сотрудник/А-Клуб",C3="Нет"),J11,"")))))))))) ->  | L24: Программа | M24: Семейная ипотека
B25: Средневзвешенная ставка (с учетом КОМБО-Ипотеки) | C25: =IF(C18>12000000,(C23*C24+(D23)*D24)/(C18),C24) -> 7.90% | M25: Госпрограмма 2020
B26: Срок кредитования, мес. | C26: 242.00 | D26: =IF(MOD(C26-2,12)>0,"Срок кредитования должен быть кратен 12 мес + 2 мес.","") -> 
B27: Платеж по кредиту | C27: =PMT(C25/12,C26,C18) -> -74,466.95 ₽ | D27: Рассчитывается автоматически
L28: Регион | M28: МиМО/СПбиЛО
M29: иные регионы
B30: Аккредитивы | C30: Базовые значения | D30: Условия доступа к аккредитиву (Подсказка)
B31: 1 аккредитив (деньги пойдут на оплату зем. участка) | C31: =IF(Цель_кредита="покупка земли и строительство дома",C11-C15,0) -> 1,000,000.00 | D31: =IF(C31="","",'Матрица по аккред._Инфо'!F3) -> Чтобы продавец зем.участка получил деньги за земельный участок, нужно предоставить документы о переходе права на зем. участок и ипотеки в пользу Банка
B32: 2 аккредитив (деньги пойдет на строительство фундамента) | C32: =IF((IF($C$8="Стандарт",($C$12*'Матрица по аккред._Инфо'!C4),IF($C$8="Ключевой",($C$12*'Матрица по аккред._Инфо'!D4),IF($C$8="Эксклюзив",($C$12*'Матрица по аккред._Инфо'!E4),0)))-C16-C17)<0,0,(IF($C$8="Стандарт",($C$12*'Матрица по аккред._Инфо'!C4),IF($C$8="Ключевой",($C$12*'Матрица по аккред._Инфо'!D4),IF($C$8="Эксклюзив",($C$12*'Матрица по аккред._Инфо'!E4),0)))-C16-C17)) -> 11,200,000.00 | D32: =IF(C32="","",'Матрица по аккред._Инфо'!F4) -> Чтобы подрядчик получил деньги для пополнения эскроу счета подрядчик/клиент должен предоставить документы, подтверждающие регистрацию ипотеки на зем.участок в пользу Банка
B33: 3 аккредитив (деньги пойдут оставшиейся строительные этапы) | C33: =IF(((IF($C$8="Стандарт",($C$12*'Матрица по аккред._Инфо'!C4),IF($C$8="Ключевой",($C$12*'Матрица по аккред._Инфо'!D4),IF($C$8="Эксклюзив",($C$12*'Матрица по аккред._Инфо'!E4),0)))-C16-C17)<0),IF($C$8="Стандарт",($C$12*'Матрица по аккред._Инфо'!C5),IF($C$8="Ключевой",($C$12*'Матрица по аккред._Инфо'!D5),IF($C$8="Эксклюзив",($C$12*'Матрица по аккред._Инфо'!E5),0)))+(IF($C$8="Стандарт",($C$12*'Матрица по аккред._Инфо'!C4),IF($C$8="Ключевой",($C$12*'Матрица по аккред._Инфо'!D4),IF($C$8="Эксклюзив",($C$12*'Матрица по аккред._Инфо'!E4),0)))-C16-C17),IF($C$8="Стандарт",($C$12*'Матрица по аккред._Инфо'!C5),IF($C$8="Ключевой",($C$12*'Матрица по аккред._Инфо'!D5),IF($C$8="Эксклюзив",($C$12*'Матрица по аккред._Инфо'!E5),0)))) -> 0 | D33: =IF(C33="","",'Матрица по аккред._Инфо'!F5) -> После того, как фундамент будет построен, подрядчик может получить деньги для продолжения строительства жилого дома. Для этого потребуется предоставить в Банк акт выполненных работ по строительству фундамента
B34: 4 пост-оплата (в этот момент дом уже достроен, подрядчик получит деньги после подписания акта до завершении строительства) | C34: =IF($C$8="Стандарт",($C$12*'Матрица по аккред._Инфо'!C6),IF($C$8="Ключевой",($C$12*'Матрица по аккред._Инфо'!D6),IF($C$8="Эксклюзив",($C$12*'Матрица по аккред._Инфо'!E6),0))) -> 0 | D34: =IF(C34="","",'Матрица по аккред._Инфо'!F6) -> После того, как дом будет построен, Подрядчик получает оставшуюся сумму средств. Для этого необходимо предоставить в Банк акт выполненных работ по строительству жилого дома
B35: Проверка_общая стоимость строительства | C35: =SUM(C32:C34) -> 11,200,000.00
C36: =IF(C35=C12,"Проверка пройдена","Стоимость строительства не совпадает с суммой аккредитивов") -> Стоимость строительства не совпадает с суммой аккредитивов

Sheet Участники (hidden)
L1: Наполнение списка | O1: Наполнение списка
B2: Программа | C2: Госпрограмма 2020 | L2: Семейная ипотека | O2: Строительство дома на своем участке
B3: Цель кредита | C3: Покупка земли и строительство дома | L3: Госпрограмма 2020 | O3: Покупка земли и строительство дома
B5: Требования к составу участников | C5: =IF(AND(C2="Семейная ипотека",C3="Строительство дома на своем участке"),_xlfn.CONCAT("- Все собственники земли должны соответствовать условиям Семейной ипотеки (иметь детей). ", "Если кто-то из собственников земли не имеет детей, то Банк не сможет согласовать кредит по Семейной ипотеке. ","Можно предложить воспользоваться Госпрограммой 2020. ; - По завершению строительства дом должен быть оформлен в собственность тех же лиц, кому принадлежит земля. При этом дом должен быть оформлен в тех же долях, что и земля. ", "Изменение размера долей или режима собственности не допускается"),IF(AND(C2="Семейная ипотека",C3="Покупка земли и строительство дома"),_xlfn.CONCAT("- Земля должна приобретаться только в собственность лиц, соответствующих требованиям Семейной ипотеки (т.е. имеющих детей). ", "Земля не может оформляться в собственность иных лиц! При этом иные лица могут быть привлечены в качестве созаемщиков, с учетом требования по наличию дохода (в качестве созаемщика без дохода может выступать только супруг (-а). ","Если клиенты хотят включить в состав собственников земли родственников (не имеющих детей), можно предложить оформить кредит по Госпрограмме 2020. - По завершению строительства дом ", "должен быть оформлен в собственность тех же лиц, в чью собственность будет приобретаться земля. ", "При этом дом должен быть оформлен в тех же долях, что и земля. ", "Изменение размера долей или режима собственности не допускается."),IF(AND(C2="Госпрограмма 2020",C3="Строительство дома на своем участке"),_xlfn.CONCAT("- Все собственники земли должны быть совершеннолетними гражданами РФ. ", "Все собственники земли должны иметь доход, за исключением супруга (-и) заемщика. ","Если кто-то из собственников земли не имеет дохода (за исключением супруги заемщика), такой земельный участок не может быть согласован. - По завершению строительства ", "дом должен быть оформлен в собственность тех же лиц, кому принадлежит земля. При этом дом должен быть оформлен в тех же долях, что и земля. ", "Изменение размера долей или режима собственности не допускается"),IF(AND(C2="Госпрограмма 2020",C3="Покупка земли и строительство дома"),_xlfn.CONCAT("- Земля должна приобретаться только в собственность совершеннолетних граждан РФ, имещих доход (исключение - супруг (а) заемщика, он может быть без дохода).; - По завершению строительства дом ", "должен быть оформлен в собственность тех же лиц, в чью собственность будет приобретаться земля. ", "При этом дом должен быть оформлен в тех же долях, что и земля. ", "Изменение размера долей или режима собственности не допускается."),"")))) -> - Земля должна приобретаться только в собственность совершеннолетних граждан РФ, имещих доход (исключение - супруг (а) заемщика, он может быть без дохода).; - По завершению строительства дом должен быть оформлен в собственность тех же лиц, в чью собственность будет приобретаться земля. При этом дом должен быть оформлен в тех же долях, что и земля. Изменение размера долей или режима собственности не допускается.
B7: Проверь себя (на примере СИ) | C7: Сотрудник ОП может проверить состав участников сделки (еще доработаем блок)
B9: Блок заполняется сотрудников ОП!!! | F9: Блок заполняется автоматически!!!
B10: Кол-во собственников земли | C10: 3 | F10: Кол-во будущих собственников жилого дом | G10: =C10 -> 3 | L10: Наполнение списка
L11: Да
B12: Состав собственников ЗУ | C12: ФИО | D12: Относится к ЦА Семейки | F12: Состав будущих собственников жилого дома | G12: Готов ли банк рассматривать в качестве залогодателя | L12: Нет
B13: Собственник ЗУ №1 | C13: Иванов И.И. | D13: Да | F13: =C13 -> Иванов И.И. | G13: =IF(D13="Да","Да","Нет") -> Да
B14: Собственник ЗУ №2 | C14: Иванова М.П. | D14: Да | F14: =C14 -> Иванова М.П. | G14: =IF(D14="Да","Да","Нет") -> Да
B15: Собственник ЗУ №3 | C15: Петров С.С. | D15: Нет | F15: =C15 -> Петров С.С. | G15: =IF(D15="Да","Да","Нет") -> Нет
B16: Собственник ЗУ №4
B19: Заключение о возможности проведения сделки с указанным составом собственников зем. участка
B20: =IF(ISNA(MATCH(L12,G13:G16,0)),"Поздравляем, состав участников согласован","К сожалению, состав участников не может быть согласован по Семейной ипотеке. Предложите клиентам воспользоваться Госпрограммой 2020") -> К сожалению, состав участников не может быть согласован по Семейной ипотеке. Предложите клиентам воспользоваться Госпрограммой 2020

Sheet Материалы стен (hidden)
B2: Допустимые материалы стен (справочник Пеги) | C2: Комментарии (что можно отнести к категории материалов) | E2: НЕдопустимые материалы стен | F2: Комментарии (что можно отнести к категории материалов)
B3: Кирпич | C3: - Все виды кирпича - Поротерм (Pototherm) - Керамический блок | E3: Камыш
B4: Каменный | C4: НЕ ВЫБИРАТЬ В ПЕГЕ (будет отказ) | E4: Шлакоблоки
B5: Каркасный | E5: Ракушечник/ракушняк
B6: Металлокаркасные панели/легкие конструкции | C6: - ЛСТК - сэндвич-панели | E6: Фанера
B7: Сип-панели | E7: Металлические листы
B8: Монолит | C8: - Железобетон - Арболит - Полистиролбетон (ПСБ) - Пенополистиролбетон - Стиропорбетон - Стиропорпенобетон - Пенопластобетон - Опилкобетон | E8: Саман
B9: Панель | C9: - Однослойные панели - Трехслойные панели - Префаб каркасник (панели) - CLT | E9: Солома
B10: Газоблок | C10: - Газоблок - Газобетон | E10: Шпалы
B11: Пеноблок | C11: - Пеноблок - Пенобетон | E11: Грунт
B12: Твинблок | C12: - Твинблок
B13: Брус | C13: - Все виды бруса (кроме клееного бруса)
B14: Клееный брус | C14: - Клееный брус
B15: Кирпично-мололитный

Sheet Матрица ставок_Инфо
B2: Ипотека на строительство жилого дома
C3: Семейная ипотека (К/З <= 79,9%) | D3: Семейная ипотека для ДФО (К/З <= 79,9%) | E3: Льготная ипотека с гос. поддержкой (К/З <= 69,9%) | F3: IT- ипотека с гос. поддержкой (К/З <= 79,9%) | G3: Стандартная программа (только для Комбо-ипотеки) (К/З <= 79,9%) | H3: Собственная программа Банка (пока в формате Нестандарта) (К/З <= 79,9%)
B4: БАЗОВАЯ СТАВКА | C4: 6.00% | D4: 5.00% | E4: 8.00% | F4: 6.00% | G4: 21.50% | H4: 21.50%
B6: Дисконты К БАЗОВОЙ СТАВКЕ (дисконты на сегмент и личное страхование могут суммироваться)
B7: А-Клуб/Сотрудники | C7: 0.00% | D7: =C7 -> 0.00% | E7: 0.00% | F7: 0.00% | G7: 0.00% | H7: 0.00%
B8: Заключение договора личного страхования | C8: 0.00% | D8: =C8 -> 0.00% | E8: -0.10% | F8: 0.00% | G8: 0.00% | H8: 0.00%
B9: Быстрый выход на сделку | C9: 0.00% | D9: =C9 -> 0.00% | E9: 0.00% | F9: 0.00% | G9: 0.00% | H9: 0.00%
B11: Надбавки К БАЗОВОЙ СТАВКЕ
B12: Отказ от договора личного страхования | C12: 1.00% | D12: =C12 -> 1.00% | E12: 1.00% | F12: 0.00% | G12: 1.00% | H12: 1.00%
B14: Расчет ставки с учетом дисконтов и надбавок
B15: Ипотека на строительство жилого дома
C16: Семейная ипотека (К/З <= 79,9%) | D16: Семейная ипотека для ДФО (К/З <= 79,9%) | E16: Льготная ипотека с гос. поддержкой (К/З <= 69,9%) | F16: IT- ипотека с гос. поддержкой (К/З <= 79,9%) | G16: Комбо-ипотека (в части суммы, превышающей стандартные суммы по госпрограммам - 12/6 млн руб.) (К/З <= 79,9%) | H16: Собственная программа Банка (пока в формате Нестандарта) (К/З <= 79,9%)
B17: Клиент "улица" или зп-клиент (НЕ А-Клуб/Сотрудники) БЕЗ личного страхования | C17: =C4+C12 -> 7.00% | D17: =D4+D12 -> 6.00% | E17: 9.00% | F17: 6.00% | G17: =G4+G12 -> 22.50% | H17: =H4+H12 -> 22.50%
B18: Клиент "улица" или зп-клиент (НЕ А-Клуб/Сотрудники) С договором личного страхования | C18: =C4+C8 -> 6.00% | D18: =D4+D8 -> 5.00% | E18: 7.90% | F18: 6.00% | G18: =G4+G8 -> 21.50% | H18: =H4+H8 -> 21.50%
B19: Клиент А-Клуб/Сотрудники БЕЗ личного страхования | C19: =C4+C7+C12 -> 7.00% | D19: 6.00% | E19: 9.00% | F19: 6.00% | G19: =G4+G7+G12 -> 22.50% | H19: =H4+H7+H12 -> 22.50%
B20: Клиент А-Клуб/Сотрудники С договором личного страхования | C20: =C4+C7+C8 -> 6.00% | D20: 5.00% | E20: 7.90% | F20: 6.00% | G20: 21.50% | H20: =H4+H7+H8 -> 21.50%
B21: Клиент "улица" или зп-клиент (НЕ А-Клуб/Сотрудники) БЕЗ личного страхования, вышедший на сделку в течение 30 дней после одобрения | C21: =C17+$G$9 -> 7.00% | D21: 6.00% | E21: 9.00% | F21: 6.00% | G21: =G17+$G$9 -> 22.50% | H21: =H17+$H$9 -> 22.50%

Sheet Матрица по аккред._Инфо (hidden)
A2: Номер аккредитива | B2: Цель | C2: Стандарт | D2: Ключевой | E2: Эксклюзив | F2: Условия доступа к аккредитиву
A3: 1 | B3: покупка земли (% от стоимости зем. участка) | C3: 100% | D3: 100% | E3: 100% | F3: Чтобы продавец зем.участка получил деньги за земельный участок, нужно предоставить документы о переходе права на зем. участок и ипотеки в пользу Банка
A4: 2 | B4: строительство | C4: 100% | D4: 100% | E4: 100% | F4: Чтобы подрядчик получил деньги для пополнения эскроу счета подрядчик/клиент должен предоставить документы, подтверждающие регистрацию ипотеки на зем.участок в пользу Банка
A5: 3 | B5: коробка | C5: 0% | D5: 0% | E5: =100%-E4 -> 0% | F5: После того, как фундамент будет построен, подрядчик может получить деньги для продолжения строительства жилого дома. Для этого потребуется предоставить в Банк акт выполненных работ по строительству фундамента
A6: 4 | B6: пост-оплата | C6: 0% | D6: 0% | E6: =100%-E4-E5 -> 0% | F6: После того, как дом будет построен, Подрядчик получает оставшуюся сумму средств. Для этого необходимо предоставить в Банк акт выполненных работ по строительству жилого дома
A9: Номер аккредитива | B9: Цель | C9: GoodWood | F9: Условия доступа к аккредитиву
A10: 1 | B10: покупка земли (% от стоимости зем. участка) | C10: 100% | F10: Чтобы продавец зем.участка получил деньги за земельный участок, нужно предоставить документы о переходе права на зем. участок и ипотеки в пользу Банка
A11: 2 | B11: начало строительства (фундамент) | C11: 100% | F11: Чтобы подрядчик получил деньги для пополнения эскроу счета подрядчик/клиент должен предоставить документы, подтверждающие регистрацию ипотеки на зем.участок в пользу Банка
A12: 3 | B12: коробка | C12: 0% | F12: После того, как фундамент будет построен, подрядчик может получить деньги для продолжения строительства жилого дома. Для этого потребуется предоставить в Банк акт выполненных работ по строительству фундамента
A13: 4 | B13: пост-оплата | C13: 0% | F13: После того, как стеновой комплект будет построен, Подрядчик получает оставшуюся сумму средств. Для этого необходимо предоставить в Банк акт выполненных работ по строительству стенового комплекта

Sheet Участники_проверка на заведении (hidden)
B2: Строительство на своем земельном участке
B4: Кол-во собственников земли | C4: 3 | D4: Заполняется сотрудников ОП!!! | F4: Кол-во будущих собственников жилого дом | G4: =C4 -> 3 | L4: Наполнение списка
L5: Да
B6: Состав собственников ЗУ | C6: ФИО | D6: Относится к ЦА Семейки | F6: Состав будущих собственников жилого дома | G6: Готов ли банк рассматривать в качестве залогодателя | L6: Нет
B7: Собственник ЗУ №1 | C7: Иванов И.И. | D7: Да | F7: =C7 -> Иванов И.И. | G7: =IF(D7="Да","Да","Нет") -> Да
B8: Собственник ЗУ №2 | C8: Иванова М.П. | D8: Нет | F8: =C8 -> Иванова М.П. | G8: =IF(D8="Да","Да","Нет") -> Нет
B9: Собственник ЗУ №3 | C9: Петров С.С. | D9: Да | F9: =C9 -> Петров С.С. | G9: =IF(D9="Да","Да","Нет") -> Да
B10: Собственник ЗУ №4
B13: Заключение о возможности проведения сделки с указанным составом собственников зем. участка
B14: =IF(ISNA(MATCH(L6,G7:G10,0)),"Поздравляем, состав участников согласован","К сожалению, состав участников не может быть согласован. Банк не сможет одобрить строительство на данном земельном участке") -> К сожалению, состав участников не может быть согласован. Банк не сможет одобрить строительство на данном земельном участке
B16: Финальные параметры:
B17: ФИО | C17: Роль в сделке | D17: Доля в праве собственности
